bitfinex/quotes_SOLUSD_20241101
["timestamp","ask_amount","ask_price","bid_price","bid_amount"]
[1730482265187,121.56952576,166.96,166.95,2.05e-05]
[1730482265883,43.902374,166.95,166.86,17.21447588]
[1730482266069,43.902374,166.95,166.83,6.168]
[1730482266070,17.21447588,166.87,166.83,6.168]
[1730482266271,0.12549,166.94,166.8,21.6658]
[1730482266481,43.902374,166.92,166.8,32.88547588]
[1730482266779,0.12549,166.89,166.8,17.21447588]
[1730482266980,43.902374,166.87,166.79,0.6094205]
[1730482267360,0.12549,166.84,166.79,0.6094205]
[1730482267680,17.21447588,166.82,166.79,0.6094205]
[1730482268071,17.21447588,166.83,166.79,0.6094205]
[1730482268470,0.12549,166.84,166.79,0.6094205]
[1730482268789,17.33996588,166.8,166.79,0.6094205]
[1730482269167,41.11684988,166.8,166.79,0.6094205]
[1730482269368,17.33996588,166.8,166.79,0.6094205]
[1730482269965,23.33516588,166.8,166.79,0.6094205]
[1730482270582,17.21447588,166.8,166.79,0.6094205]
[1730482271091,5.9941,166.83,166.79,0.6094205]
[1730482271281,17.21447588,166.81,166.79,0.6094205]
[1730482271585,0.12549,166.81,166.79,0.6094205]
[1730482271786,17.21447588,166.8,166.79,0.6094205]
[1730482271988,17.33996588,166.8,166.79,0.6094205]
[1730482272992,41.11684988,166.8,166.79,0.6094205]
[1730482273667,67.11204988,166.8,166.79,0.6094205]
[1730482274168,64.32652576,166.8,166.79,0.6094205]
[1730482274374,40.54964176,166.8,166.79,0.6094205]
[1730482274571,23.33516588,166.8,166.79,0.6094205]
[1730482276099,40.54964176,166.8,166.79,0.6094205]
[1730482276785,64.32652576,166.8,166.79,0.6094205]
[1730482276986,34.42895176,166.8,166.79,0.6094205]
[1730482277790,0.12549,166.81,166.79,0.6094205]
[1730482277992,5.9947,166.82,166.79,0.6094205]
[1730482278767,17.21447588,166.81,166.79,0.6094205]
[1730482278982,17.21447588,166.81,166.79,6.6049205]
[1730482279187,17.21447588,166.81,166.79,21.5938205]
[1730482279381,5.9933,166.86,166.79,21.5938205]
[1730482279589,17.21447588,166.88,166.79,21.5938205]
[1730482279893,0.12549,166.87,166.79,21.5938205]
[1730482280087,30.1538,166.9,166.79,38.80829638]
[1730482280394,23.902374,166.89,166.79,38.80829638]
[1730482281390,17.21447588,166.85,166.79,38.80829638]
[1730482281596,5.993,166.86,166.8,17.21447588]
[1730482282095,23.20747588,166.86,166.79,21.5938205]
[1730482282695,23.20747588,166.86,166.81,5.9948]
[1730482283973,17.21447588,166.89,166.83,17.21447588]
[1730482284292,17.21447588,166.88,166.83,17.21447588]
[1730482284995,17.21447588,166.88,166.84,20.9781]
[1730482286089,0.12549,166.87,166.82,39.21107588]
[1730482286282,5.9924,166.88,166.82,21.9965]
[1730482286490,17.21447588,166.87,166.82,36.9827]
[1730482286683,23.20697588,166.88,166.83,17.21447588]
[1730482286884,17.21447588,166.86,166.82,36.9826]
[1730482287102,23.902374,166.87,166.8,5.9949]
[1730482287397,17.21447588,166.84,166.8,5.9949]
[1730482288188,17.21447588,166.85,166.8,5.9949]
[1730482288385,17.21447588,166.85,166.79,15.5980205]
[1730482288589,17.21447588,166.85,166.79,21.5935205]
[1730482288987,5.993,166.86,166.79,38.80799638]
[1730482289598,23.20797588,166.85,166.79,38.80799638]
[1730482289781,23.20797588,166.85,166.79,17.82389638]
[1730482289782,23.902374,166.84,166.79,17.82389638]
[1730482289982,23.902374,166.84,166.79,0.6094205]
[1730482290486,17.21447588,166.82,166.79,0.6094205]
[1730482291706,6.12029,166.81,166.79,0.6094205]
[1730482291883,23.902374,166.8,166.79,0.6094205]
[1730482293496,5.9948,166.81,166.79,0.6094205]
[1730482293700,17.21447588,166.8,166.79,0.6094205]
[1730482293879,5.9948,166.81,166.79,0.6094205]
[1730482294284,23.20927588,166.81,166.79,0.6094205]
[1730482294703,17.21447588,166.81,166.79,0.6094205]
[1730482295085,23.20897588,166.82,166.79,0.6094205]
[1730482296798,17.21447588,166.82,166.79,0.6094205]
[1730482297002,17.21447588,166.83,166.79,0.6094205]
[1730482297404,17.21447588,166.82,166.79,0.6094205]
[1730482298901,23.20897588,166.82,166.79,0.6094205]
[1730482299702,5.9945,166.82,166.79,0.6094205]
[1730482300692,17.21447588,166.81,166.79,0.6094205]
[1730482301812,23.20897588,166.82,166.79,0.6094205]
[1730482302002,17.21447588,166.83,166.79,0.6094205]
[1730482302195,17.21447588,166.83,166.79,6.6049205]
[1730482302390,17.21447588,166.83,166.79,0.6094205]
[1730482302692,23.776884,166.84,166.79,0.6094205]
[1730482302896,0.12549,166.83,166.79,0.6094205]
[1730482303117,17.21447588,166.82,166.79,0.6094205]
[1730482304221,5.9945,166.82,166.79,0.6094205]
[1730482304593,23.20857588,166.83,166.79,0.6094205]
[1730482305414,5.9937,166.85,166.79,21.5938205]
[1730482305620,5.9933,166.86,166.81,17.21447588]
[1730482305917,23.20777588,166.86,166.81,17.21447588]
[1730482306091,23.20777588,166.86,166.8,17.21447588]
[1730482306488,17.21447588,166.86,166.81,20.9819]
[1730482306711,5.9921,166.89,166.81,20.9819]
[1730482306911,17.21447588,166.88,166.82,17.21447588]
[1730482307113,47.16167588,166.96,166.81,20.9819]
[1730482307114,17.21447588,166.9,166.85,17.21447588]
[1730482307504,23.20597588,166.91,166.85,17.21447588]
[1730482307703,23.20597588,166.91,166.86,17.21447588]
[1730482308612,23.20537588,166.92,166.86,38.18997588]
[1730482310617,17.21447588,166.88,166.83,32.19937588]
[1730482311321,23.902374,166.91,166.83,14.9849]
[1730482311897,23.902374,166.91,166.8,21.3351]
[1730482312401,5.9923,166.88,166.79,6.6047205]
[1730482312594,23.776884,166.87,166.79,21.5936205]
[1730482313009,0.12549,166.86,166.79,38.80809638]
[1730482313221,0.12549,166.86,166.79,21.5936205]
[1730482314095,5.9934,166.85,166.79,21.5936205]
[1730482314504,23.20787588,166.85,166.79,21.5936205]
[1730482315015,23.20787588,166.85,166.79,38.80809638]
[1730482315607,5.9934,166.85,166.8,23.20957588]
[1730482316004,17.33996588,166.86,166.8,38.19757588]
[1730482316405,6.11859,166.86,166.8,20.9831]
[1730482316816,23.33306588,166.86,166.81,17.21447588]
[1730482317421,17.21447588,166.85,166.8,20.9831]
[1730482317918,23.20797588,166.85,166.79,17.82389638]
[1730482318118,5.9935,166.85,166.79,0.6094205]
[1730482318518,17.21447588,166.84,166.79,17.82389638]
[1730482318924,17.21447588,166.84,166.79,23.81929638]
[1730482319225,5.9926,166.87,166.79,21.5937205]
[1730482319519,0.12549,166.86,166.79,21.5937205]
[1730482319727,17.21447588,166.86,166.81,17.21447588]
[1730482320422,17.21447588,166.87,166.79,21.5937205]
[1730482320814,5.9923,166.88,166.8,5.9949]
[1730482321221,17.21447588,166.85,166.8,23.20937588]
[1730482321907,23.20787588,166.85,166.8,23.20937588]
[1730482322217,23.20787588,166.85,166.8,17.21447588]
[1730482322411,17.21447588,166.84,166.79,38.80819638]
[1730482322922,23.20787588,166.85,166.79,32.81279638]
[1730482323130,0.12549,166.84,166.79,0.6094205]
[1730482323305,23.902374,166.84,166.79,0.6094205]
[1730482323812,17.21447588,166.82,166.79,0.6094205]
[1730482324013,23.20927588,166.82,166.79,0.6094205]
[1730482324331,32.19557588,166.88,166.79,0.6094205]
[1730482324519,23.776884,166.86,166.79,0.6094205]
[1730482324845,0.12549,166.85,166.79,0.6094205]
[1730482325328,34.42895176,166.8,166.79,0.6094205]
[1730482325628,58.33132576,166.8,166.79,0.6094205]
[1730482325924,23.902374,166.79,166.69,34.67109858]
[1730482326124,0.12549,166.76,166.69,18.25379858]
[1730482326321,0.12549,166.76,166.69,17.21447588]
[1730482326521,0.12549,166.76,166.68,7.24328889]
[1730482327122,17.21447588,166.72,166.68,13.24278889]
[1730482327521,17.21447588,166.72,166.68,28.24158889]
[1730482327722,5.9959,166.78,166.68,28.24158889]
[1730482327922,5.9955,166.79,166.68,28.24158889]
[1730482328127,17.21447588,166.77,166.68,28.24158889]
[1730482328422,17.21447588,166.76,166.71,17.21447588]
[1730482328611,17.21447588,166.75,166.7,17.21447588]
[1730482328811,17.21447588,166.77,166.71,17.21447588]
[1730482329001,17.33996588,166.76,166.71,32.21007588]
[1730482329205,0.12549,166.76,166.71,14.9956]
[1730482329408,17.33996588,166.76,166.71,14.9956]
[1730482329719,17.21447588,166.74,166.71,14.9956]
[1730482330026,17.21447588,166.75,166.71,14.9956]
[1730482330203,0.12549,166.74,166.7,17.21447588]
[1730482330409,5.9964,166.77,166.69,5.9991]
[1730482330609,17.21447588,166.75,166.69,23.21357588]
[1730482331111,17.21447588,166.75,166.69,38.21147588]
[1730482331328,17.21447588,166.74,166.69,38.21147588]
[1730482331527,17.21447588,166.78,166.73,17.21447588]
[1730482331911,17.21447588,166.79,166.72,15.5248]
[1730482332108,17.21447588,166.8,166.74,17.21447588]
[1730482332319,17.21447588,166.8,166.75,17.21447588]
[1730482332916,5.9941,166.83,166.72,15.5248]
[1730482333114,0.12549,166.82,166.73,5.9977]
[1730482333832,17.21447588,166.79,166.73,20.992]
[1730482334124,5.9941,166.83,166.73,20.992]
[1730482334325,5.9941,166.83,166.73,50.9806]
[1730482334910,0.12549,166.82,166.73,50.9806]
[1730482335123,17.21447588,166.81,166.75,17.21447588]
[1730482335516,23.20947588,166.81,166.75,38.20357588]
[1730482335727,0.12549,166.8,166.75,17.21447588]
[1730482336032,0.12549,166.8,166.74,5.9973]
[1730482336407,23.902374,166.8,166.72,30.5196]
[1730482336733,17.21447588,166.78,166.72,53.73177588]
[1730482337031,17.33996588,166.79,166.72,36.5173]
[1730482337418,17.21447588,166.8,166.75,20.9895]
[1730482337727,6.4807,166.86,166.79,17.21447588]
[1730482337728,17.21447588,166.84,166.79,17.21447588]
[1730482337926,5.9932,166.86,166.75,27.1362]
[1730482338125,5.9919,166.89,166.77,16.0517]
[1730482338333,17.21447588,166.88,166.83,17.21447588]
[1730482339117,17.21447588,166.88,166.78,23.776884]
[1730482339118,23.20637588,166.89,166.78,23.776884]
[1730482339312,23.20637588,166.89,166.79,20.9844]
[1730482339826,23.20637588,166.89,166.83,17.21447588]
[1730482340026,17.21447588,166.89,166.8,23.776884]
[1730482340415,5.9917,166.9,166.84,17.21447588]
[1730482340911,0.12549,166.89,166.84,17.21447588]
[1730482341241,0.12549,166.89,166.79,20.9844]
[1730482341419,0.12549,166.9,166.79,14.9889]
[1730482341846,23.776884,166.91,166.77,16.0517]
[1730482341847,23.902374,166.86,166.81,17.21447588]
[1730482342527,23.902374,166.86,166.77,20.9869]
[1730482342731,23.902374,166.86,166.77,14.9907]
[1730482343032,23.902374,166.86,166.76,5.9965]
[1730482343415,5.9934,166.85,166.76,5.9965]
[1730482343615,5.9934,166.85,166.75,17.21447588]
[1730482343616,23.902374,166.84,166.75,17.21447588]
[1730482344238,23.776884,166.84,166.73,16.3453]
[1730482344422,23.776884,166.84,166.73,22.3429]
[1730482344621,0.12549,166.83,166.73,37.3372]
[1730482345331,0.12549,166.83,166.75,17.21447588]
[1730482345533,17.21447588,166.8,166.75,17.21447588]
[1730482345723,23.20997588,166.8,166.75,17.21447588]
[1730482346244,0.12549,166.79,166.73,14.9943]
[1730482346420,0.12549,166.79,166.73,20.992]
[1730482346924,0.12549,166.79,166.74,17.21447588]
[1730482347439,0.12549,166.79,166.73,32.20877588]
[1730482347740,23.21067588,166.78,166.73,14.9943]
[1730482348119,5.9962,166.78,166.74,17.21447588]
[1730482348644,23.33556588,166.79,166.74,17.21447588]
[1730482348822,23.21007588,166.79,166.74,17.21447588]
[1730482349021,5.9956,166.79,166.74,17.21447588]
[1730482349224,0.12549,166.78,166.74,17.21447588]
[1730482349436,0.12549,166.78,166.73,14.9943]
[1730482349945,17.21447588,166.78,166.73,32.20877588]
[1730482350321,17.21447588,166.78,166.73,17.21447588]
[1730482350523,23.776884,166.81,166.71,12.1223]
[1730482350831,23.776884,166.82,166.71,57.1106]
[1730482351235,23.776884,166.82,166.71,27.1184]
[1730482351236,0.12549,166.81,166.71,27.1184]
[1730482351546,17.21447588,166.78,166.73,17.21447588]
[1730482351917,17.21447588,166.79,166.74,17.21447588]
[1730482352927,23.21017588,166.79,166.74,17.21447588]
[1730482353134,0.12549,166.78,166.74,17.21447588]
[1730482353527,0.12549,166.78,166.71,27.1184]
[1730482353850,17.21447588,166.79,166.74,17.21447588]
[1730482354025,5.996,166.78,166.74,17.21447588]
[1730482354648,5.996,166.78,166.72,20.9932]
[1730482354847,5.996,166.78,166.72,38.20767588]
[1730482355232,17.21447588,166.78,166.74,20.9907]
[1730482355448,5.9952,166.8,166.74,20.9907]
[1730482356051,0.12549,166.79,166.72,5.9977]
[1730482356228,0.12549,166.79,166.71,6.1239]
[1730482356436,45.400674,166.79,166.69,6.2412198]
[1730482356624,23.902374,166.77,166.65,15.8611]
[1730482356824,23.902374,166.77,166.67,5.9996]
[1730482357127,23.902374,166.77,166.66,6.24289197]
[1730482357128,23.902374,166.77,166.68,6.89878889]
[1730482357322,5.9966,166.76,166.68,15.89828889]
[1730482357745,0.12549,166.75,166.68,15.89828889]
[1730482358144,23.902374,166.72,166.68,18.11396477]
[1730482358645,23.902374,166.7,166.68,17.21447588]
[1730482358850,23.902374,166.7,166.55,46.3781]
[1730482358851,43.776884,166.69,166.56,21.013]
[1730482359051,20.0,166.67,166.56,15.0094]
[1730482359231,0.12549,166.63,166.49,1.04036326]
[1730482359430,23.902374,166.63,166.5,6.0059]
[1730482360441,23.902374,166.63,166.5,15.015]
[1730482360634,6.0016,166.62,166.5,15.015]
[1730482360952,17.21447588,166.58,166.52,17.21447588]
[1730482362138,0.12549,166.62,166.51,20.0]
[1730482362729,29.904274,166.62,166.52,21.0184]
[1730482362929,14.9993,166.68,166.52,21.0184]
[1730482362930,25.9998,166.67,166.52,21.0184]
[1730482363133,23.776884,166.66,166.52,21.0184]
[1730482363330,17.21447588,166.58,166.53,17.21447588]
[1730482363545,23.776884,166.66,166.53,20.0]
[1730482363853,0.12549,166.65,166.54,23.776884]
[1730482364234,0.12549,166.65,166.53,43.776884]
[1730482364740,6.12609,166.65,166.54,21.0159]
[1730482365131,27.69954352,166.62,166.56,27.69954352]
[1730482365326,27.69954352,166.62,166.57,6.443]
[1730482366243,27.69954352,166.62,166.56,27.69954352]
[1730482366552,20.0,166.69,166.54,51.0387]
[1730482366857,23.902374,166.68,166.54,51.0387]
[1730482367766,27.69954352,166.62,166.54,51.0387]
[1730482368637,6.0007,166.65,166.54,51.0387]
[1730482368839,5.9998,166.67,166.55,23.776884]
[1730482369148,27.69954352,166.65,166.59,27.69954352]
[1730482369455,27.69954352,166.65,166.47,7.72295149]
[1730482369456,0.12549,166.65,166.48,22.4048]
[1730482369668,0.12549,166.58,166.49,33.70584352]
[1730482369835,27.69954352,166.54,166.49,6.0063]
[1730482370036,27.69954352,166.55,166.49,48.72174352]
[1730482370238,27.69954352,166.56,166.5,27.69954352]
[1730482370562,0.12549,166.58,166.51,6.0056]
[1730482370563,27.69954352,166.55,166.51,6.0056]
[1730482370733,6.0034,166.57,166.51,6.0056]
[1730482371142,0.12549,166.58,166.51,6.0056]
[1730482371342,27.69954352,166.57,166.51,48.71924352]
[1730482371745,6.0024,166.6,166.51,48.71924352]
[1730482371746,27.69954352,166.58,166.52,27.69954352]
[1730482371949,6.0024,166.6,166.52,27.69954352]
[1730482371950,27.69954352,166.57,166.52,27.69954352]
[1730482372457,27.69954352,166.57,166.51,48.71924352]
[1730482372649,6.002,166.61,166.53,21.0172]
[1730482372854,27.69954352,166.6,166.54,27.69954352]
[1730482373548,27.69954352,166.6,166.55,27.69954352]
[1730482373863,5.9995,166.68,166.59,27.69954352]
[1730482374168,27.69954352,166.66,166.61,27.69954352]
[1730482374353,27.69954352,166.66,166.57,22.1904]
[1730482374354,27.69954352,166.68,166.62,27.69954352]
[1730482374658,27.69954352,166.68,166.63,27.69954352]
[1730482375164,0.12549,166.69,166.58,51.0265]
[1730482375533,0.12549,166.69,166.58,21.0109]
[1730482376144,27.69954352,166.67,166.61,27.69954352]
[1730482376956,27.69954352,166.66,166.61,33.70134352]
[1730482377558,27.69954352,166.67,166.61,33.70134352]
[1730482377944,0.12549,166.66,166.61,27.69954352]
[1730482378267,0.12549,166.66,166.58,15.0078]
[1730482378558,0.12549,166.66,166.57,15.7705]
[1730482378744,0.12549,166.66,166.57,21.7738]
[1730482378955,27.69954352,166.64,166.58,27.69954352]
[1730482379561,33.70014352,166.65,166.59,27.69954352]
[1730482379935,0.12549,166.64,166.59,27.69954352]
[1730482380140,0.12549,166.64,166.58,33.70234352]
[1730482380358,23.902374,166.64,166.58,27.69954352]
[1730482380563,0.12549,166.63,166.55,6.0038]
[1730482380763,27.69954352,166.62,166.57,27.69954352]
[1730482380967,0.12549,166.61,166.56,27.69954352]
[1730482381641,27.69954352,166.62,166.56,33.70334352]
[1730482381842,27.69954352,166.62,166.56,48.71294352]
[1730482382161,0.12549,166.67,166.56,21.0134]
[1730482382559,5.9995,166.68,166.56,21.0134]
[1730482382768,20.9983,166.68,166.56,21.0134]
[1730482383245,0.12549,166.66,166.56,21.0134]
[1730482383564,0.12549,166.66,166.54,6.4698]
[1730482383756,0.12549,166.61,166.53,15.012]
[1730482384072,23.902374,166.61,166.49,6.1537]
[1730482384257,23.902374,166.61,166.49,27.1758]
[1730482385452,0.12549,166.58,166.49,15.0159]
[1730482385652,23.776884,166.59,166.47,15.128]
[1730482385863,20.12549,166.58,166.47,15.128]
[1730482386177,23.776884,166.59,166.47,36.1526]
[1730482386463,0.12549,166.58,166.47,36.1526]
[1730482386866,23.776884,166.59,166.47,36.1526]
[1730482387952,6.002,166.61,166.47,36.1526]
[1730482388171,6.002,166.61,166.48,23.776884]
[1730482388667,6.002,166.61,166.48,30.00691842]
[1730482389160,0.12549,166.6,166.51,27.69954352]
[1730482389367,0.12549,166.6,166.48,6.23003442]
[1730482389754,6.002,166.61,166.49,23.776884]
[1730482389959,6.0013,166.63,166.52,6.0213]
[1730482390271,6.0009,166.64,166.54,16.6316]
[1730482390957,14.9988,166.68,166.55,23.776884]
[1730482391272,5.9998,166.67,166.55,23.776884]
[1730482391844,0.12549,166.68,166.56,6.0038]
[1730482392401,5.9991,166.69,166.56,51.0326]
[1730482392572,5.9991,166.69,166.57,23.776884]
[1730482392871,0.12549,166.68,166.56,51.0326]
[1730482393067,5.9991,166.69,166.56,78.73214352]
[1730482393279,0.12549,166.68,166.56,78.73214352]
[1730482393568,0.12549,166.68,166.57,23.776884]
[1730482394168,5.9991,166.69,166.62,48.70524352]
[1730482394477,6.1848,166.75,166.62,21.0057]
[1730482394681,5.9973,166.74,166.62,21.0057]
[1730482394971,5.9973,166.74,166.62,37.0777]
[1730482395647,0.12549,166.73,166.62,37.0777]
[1730482396267,5.998,166.72,166.62,37.0777]
[1730482396656,0.12549,166.69,166.64,27.69954352]
[1730482397154,5.998,166.72,166.64,27.69954352]
[1730482397571,5.9973,166.74,166.64,27.69954352]
[1730482397976,33.69684352,166.74,166.63,23.776884]
[1730482398288,33.69684352,166.74,166.68,27.69954352]
[1730482398962,5.9973,166.74,166.65,21.0021]
[1730482399360,27.69954352,166.73,166.68,27.69954352]
[1730482399968,27.69954352,166.74,166.69,27.69954352]
[1730482400170,27.69954352,166.75,166.69,27.69954352]
[1730482400679,20.9862,166.78,166.68,5.9993]
[1730482400680,5.9959,166.78,166.68,20.9981]
[1730482400979,0.12549,166.77,166.68,20.9981]
[1730482401476,0.12549,166.75,166.68,27.69954352]
[1730482401879,23.902374,166.75,166.68,27.69954352]
[1730482402078,0.12549,166.72,166.62,31.0761]
[1730482402389,0.12549,166.72,166.62,37.0777]
[1730482403282,5.9984,166.71,166.62,37.0777]
[1730482403462,0.12549,166.7,166.62,37.0777]
[1730482403853,0.12549,166.7,166.62,21.0057]
[1730482404464,27.69954352,166.68,166.62,48.70524352]
[1730482405277,0.12549,166.71,166.65,27.69954352]
[1730482405477,5.998,166.72,166.65,27.69954352]
[1730482405873,5.998,166.72,166.66,15.8519]
[1730482406055,27.69954352,166.71,166.66,15.8519]
[1730482406262,5.998,166.72,166.66,15.8519]
[1730482406481,5.998,166.72,166.67,5.9998]
[1730482406775,5.998,166.72,166.68,27.69954352]
[1730482406982,5.9979,166.73,166.69,27.69954352]
[1730482407484,5.9955,166.79,166.67,20.9995]
[1730482408080,0.12549,166.78,166.71,27.69954352]
[1730482408283,5.9955,166.79,166.71,27.69954352]
[1730482408578,27.69954352,166.78,166.68,23.776884]
[1730482408792,27.69954352,166.78,166.72,27.69954352]
[1730482409857,0.12549,166.78,166.68,23.776884]
[1730482410085,0.12549,166.79,166.69,20.997]
[1730482410382,27.69954352,166.77,166.72,27.69954352]
[1730482411159,0.12549,166.79,166.69,20.997]
[1730482411981,5.9959,166.78,166.69,14.9979]
[1730482413983,5.9959,166.78,166.67,35.9992]
[1730482413984,23.26997755,166.78,166.67,29.9994]
[1730482414174,23.26997755,166.78,166.7,14.997]
[1730482414898,17.27407755,166.76,166.71,17.27407755]
[1730482415185,23.27067755,166.76,166.71,17.27407755]
[1730482415886,0.12549,166.75,166.68,17.27407755]
[1730482416187,0.12549,166.7,166.62,32.78737755]
[1730482416361,17.27407755,166.68,166.63,17.27407755]
[1730482416560,23.776884,166.71,166.62,21.5149]
[1730482416561,17.27407755,166.67,166.62,15.5133]
[1730482416765,17.27407755,166.64,166.59,17.27407755]
[1730482416991,17.27407755,166.64,166.58,53.79807755]
[1730482417290,23.27527755,166.64,166.58,53.79807755]
[1730482417579,17.27407755,166.63,166.58,53.79807755]
[1730482417893,23.27527755,166.64,166.58,53.79807755]
[1730482418564,14.9988,166.68,166.58,53.79807755]
[1730482418565,17.27407755,166.63,166.58,53.79807755]
[1730482418784,27.68723746,166.63,166.57,1.03894111]
[1730482418990,0.12549,166.62,166.57,1.03894111]
[1730482419197,23.902374,166.62,166.52,18.61552088]
[1730482419485,23.902374,166.62,166.53,1.03932448]
[1730482420187,23.902374,166.62,166.57,27.68723746]
[1730482420394,23.902374,166.62,166.51,21.0196]
[1730482420568,0.12549,166.59,166.52,1.03937924]
[1730482422194,0.12549,166.59,166.53,21.0172]
[1730482422492,27.68723746,166.57,166.53,15.0123]
[1730482423073,27.68723746,166.57,166.53,21.0172]
[1730482423288,6.12819,166.59,166.53,15.0123]
[1730482423492,6.12819,166.59,166.52,1.03937924]
[1730482424096,21.13509,166.59,166.52,1.03937924]
[1730482424299,23.776884,166.58,166.5,31.5457]
[1730482424595,0.12549,166.57,166.5,16.05458311]
[1730482424771,27.68723746,166.55,166.5,16.05458311]
[1730482425100,0.12549,166.54,166.5,1.03968311]
[1730482425302,23.902374,166.54,166.49,27.68723746]
[1730482425486,23.902374,166.54,166.46,0.6094205]
[1730482426192,30.0138,166.59,166.46,0.6094205]
[1730482426394,6.0031,166.58,166.46,21.6354205]
[1730482426596,23.902374,166.56,166.46,21.6354205]
[1730482426785,0.12549,166.56,166.46,21.6354205]
[1730482427686,6.0031,166.58,166.46,21.6354205]
[1730482428093,20.0,166.59,166.46,21.6354205]
[1730482428275,36.01,166.62,166.46,21.6354205]
[1730482428467,21.0058,166.62,166.46,51.6726205]
[1730482428665,20.0,166.61,166.46,51.6726205]
[1730482428990,0.12549,166.59,166.46,51.6726205]
[1730482429383,0.12549,166.59,166.47,23.776884]
[1730482429570,6.12849,166.59,166.48,51.0571]
[1730482429766,6.12849,166.59,166.49,15.6022]
[1730482430174,33.81572746,166.59,166.53,27.68723746]
[1730482431080,23.776884,166.58,166.53,27.68723746]
[1730482431281,0.12549,166.57,166.49,21.6085]
[1730482431470,0.12549,166.57,166.49,36.6244]
[1730482431983,27.68723746,166.56,166.51,27.68723746]
[1730482432868,27.68723746,166.56,166.51,48.70663746]
[1730482433381,43.902374,166.61,166.46,0.6094205]
[1730482433780,0.12549,166.6,166.46,0.6094205]
[1730482434303,23.776884,166.55,166.47,6.007]
[1730482434603,0.12549,166.54,166.47,6.007]
[1730482434798,27.68723746,166.53,166.47,6.007]
[1730482435178,6.0049,166.53,166.47,6.007]
[1730482435474,6.0046,166.54,166.47,21.0247]
[1730482435894,23.776884,166.59,166.48,22.5076]
[1730482436399,27.68723746,166.56,166.5,27.68723746]
[1730482437107,33.69113746,166.56,166.51,6.0056]
[1730482437792,0.12549,166.55,166.5,42.70173746]
[1730482438193,0.12549,166.55,166.48,28.5142]
[1730482438896,0.12549,166.55,166.48,43.531]
[1730482439101,6.0045,166.54,166.48,43.531]
[1730482439402,23.902374,166.57,166.49,27.68723746]
[1730482439576,27.68723746,166.55,166.49,27.68723746]
[1730482440779,6.12999,166.54,166.49,27.68723746]
[1730482441200,6.12999,166.54,166.48,16.0023]
[1730482441386,15.0102,166.56,166.48,37.0254]
[1730482441387,6.0041,166.56,166.48,37.0254]
[1730482442605,23.902374,166.58,166.48,37.0254]
[1730482443101,27.68723746,166.55,166.49,27.68723746]
[1730482443480,23.776884,166.54,166.49,27.68723746]
[1730482443683,23.776884,166.58,166.48,22.0089]
[1730482445005,23.776884,166.56,166.48,37.0257]
[1730482445206,6.0034,166.57,166.48,37.0257]
[1730482445582,0.12549,166.56,166.48,37.0257]
[1730482446290,31.4055,166.62,166.48,67.0593]
[1730482446706,21.0071,166.61,166.48,67.0593]
[1730482447001,0.12549,166.6,166.48,37.0257]
[1730482447208,0.12549,166.6,166.48,31.0191]
[1730482447605,0.12549,166.6,166.48,16.0023]
[1730482447906,23.902374,166.6,166.48,16.0023]
[1730482448100,23.902374,166.6,166.46,1.64917645]
[1730482448300,23.776884,166.57,166.46,1.64917645]
[1730482448498,0.12549,166.56,166.46,0.6094205]
[1730482448695,6.4519,166.55,166.46,0.6094205]
[1730482448907,23.902374,166.54,166.46,0.6094205]
[1730482449488,23.902374,166.54,166.46,15.6278205]
[1730482449708,23.902374,166.54,166.46,0.6094205]
[1730482450422,23.776884,166.52,166.46,0.6094205]
[1730482450713,0.12549,166.51,166.46,0.6094205]
[1730482451288,0.12549,166.48,166.46,0.6094205]
[1730482451601,0.12549,166.48,166.41,6.22040788]
[1730482451602,23.902374,166.48,166.41,6.22040788]
[1730482451799,23.902374,166.48,166.37,15.3495]
[1730482452002,27.73059948,166.49,166.37,15.3495]
[1730482452003,0.12549,166.45,166.37,15.3495]
[1730482452197,23.776884,166.44,166.32,15.0311]
[1730482452396,0.12549,166.42,166.32,21.0435]
[1730482452595,21.0298,166.43,166.32,21.0435]
[1730482452596,23.776884,166.41,166.32,21.0435]
[1730482453308,6.0085,166.43,166.32,51.106]
[1730482453507,15.0186,166.46,166.32,51.106]
[1730482453508,6.0074,166.46,166.33,20.0]
[1730482454219,15.0157,166.5,166.33,20.0]
[1730482454220,6.0071,166.47,166.36,36.354]